fUST/lending_fUST_20240910
["ID","MTS","AMOUNT","RATE_DAILY","PERIOD"]
[337654229,1725917549766,-500.0,0.0003589,14]
[337654230,1725917549801,-500.0,0.0003589,14]
[337654231,1725917549837,-500.0,0.0003589,14]
[337654232,1725917549876,-500.0,0.0003589,14]
[337654233,1725917549912,-500.0,0.0003589,14]
[337654234,1725917549954,-533.28,0.0003589,14]
[337654235,1725917549987,-500.0,0.0003589,14]
[337654236,1725917550022,-500.0,0.0003589,14]
[337654237,1725917550056,-336.54316478,0.0003589,14]
[337654238,1725917550089,-216.81555469,0.0003589,14]
[337654239,1725917550124,-500.0,0.0003589,14]
[337654240,1725917550160,-500.0,0.0003589,14]
[337654241,1725917550193,-500.0,0.0003589,14]
[337654242,1725917550230,-500.0,0.0003589,14]
[337654243,1725917550262,-495.21340236,0.0003589,14]
[337654244,1725917550298,-2118.12,0.0003589,14]
[337654245,1725917550330,-1022.99,0.0003589,14]
[337654246,1725917550364,-500.0,0.0003589,14]
[337654247,1725917550397,-521.22,0.0003589,14]
[337654248,1725917550432,-1631.8,0.0003589,14]
[337654249,1725917550463,-500.0,0.0003589,14]
[337654250,1725917550495,-500.0,0.0003589,14]
[337654251,1725917550527,-500.0,0.0003589,14]
[337654252,1725917550559,-2210.56,0.0003589,14]
[337654253,1725917550753,-225.21757265,0.0003589,14]
[337654254,1725917550790,-500.0,0.0003589,14]
[337654255,1725917550826,-2019.71,0.0003589,14]
[337654256,1725917550860,-426.34546258,0.0003589,14]
[337654257,1725917550896,-508.68,0.0003589,14]
[337654258,1725917550930,-500.0,0.0003589,14]
[337654259,1725917550962,-500.0,0.0003589,14]
[337654260,1725917550994,-500.0,0.0003589,14]
[337654261,1725917551025,-505.20076558,0.0003589,14]
[337654262,1725917551056,-695.88,0.0003589,14]
[337654263,1725917551088,-500.0,0.0003589,14]
[337654264,1725917551119,-500.0,0.0003589,14]
[337654265,1725917551149,-500.0,0.0003589,14]
[337654266,1725917551180,-1086.8,0.0003589,14]
[337654267,1725917551213,-524.29,0.0003589,14]
[337654268,1725917551246,-999.0,0.0003589,14]
[337654269,1725917551277,-500.0,0.0003589,14]
[337654270,1725917551308,-500.0,0.0003589,14]
[337654271,1725917551339,-500.0,0.0003589,14]
[337654272,1725917551370,-500.0,0.0003589,14]
[337654273,1725917551400,-500.0,0.0003589,14]
[337654274,1725917551431,-500.0,0.0003589,14]
[337654275,1725917551461,-500.0,0.0003589,14]
[337654276,1725917551493,-500.0,0.0003589,14]
[337654277,1725917551524,-500.0,0.0003589,14]
[337654278,1725917551554,-500.0,0.0003589,14]
[337654279,1725917551588,-2068.56,0.0003589,14]
[337654280,1725917551621,-500.0,0.0003589,14]
[337654281,1725917551656,-500.0,0.0003589,14]
[337654282,1725917551691,-1688.15,0.0003589,14]
[337654283,1725917551727,-575.75,0.0003589,14]
[337654284,1725917551763,-500.0,0.0003589,14]
[337654285,1725917551795,-500.0,0.0003589,14]
[337654286,1725917551830,-3470.01,0.0003589,14]
[337654287,1725917551864,-707.11,0.0003589,14]
[337654288,1725917551898,-2748.52,0.0003589,14]
[337654289,1725917551932,-500.0,0.0003589,14]
[337654290,1725917551964,-500.0,0.0003589,14]
[337654291,1725917551995,-1030.55,0.0003589,14]
[337654292,1725917552025,-500.0,0.0003589,14]
[337654293,1725917552057,-1818.59,0.0003589,14]
[337654294,1725917552090,-4284.04,0.0003589,14]
[337654295,1725917552122,-919.94,0.0003589,14]
[337654296,1725917552154,-8606.67,0.0003589,14]
[337654297,1725917552186,-500.0,0.0003589,14]
[337654298,1725917552220,-771.28,0.0003589,14]
[337654299,1725917552254,-7668.42,0.0003589,14]
[337654300,1725917552288,-541.02,0.0003589,14]
[337654301,1725917552322,-1565.33,0.0003589,14]
[337654302,1725917552355,-500.0,0.0003589,14]
[337654303,1725917552390,-1000.81,0.0003589,14]
[337654304,1725917552426,-500.0,0.0003589,14]
[337654305,1725917552459,-1622.17,0.0003589,14]
[337654306,1725917552491,-503.58662487,0.0003589,14]
[337654307,1725917552524,-500.0,0.0003589,14]
[337654308,1725917552558,-500.0,0.0003589,14]
[337654309,1725917552592,-5583.06,0.0003589,14]
[337654310,1725917552626,-500.0,0.0003589,14]
[337654311,1725917552662,-1314.29,0.0003589,14]
[337654312,1725917552699,-500.0,0.0003589,14]
[337654313,1725917552736,-2011.46,0.0003589,14]
[337654314,1725917552773,-1831.65,0.0003589,14]
[337654315,1725917552810,-1050.83,0.0003589,14]
[337654316,1725917552844,-500.0,0.0003589,14]
[337654317,1725917552880,-500.0,0.0003589,14]
[337654318,1725917552913,-500.0,0.0003589,14]
[337654319,1725917552948,-262.78950276,0.0003589,14]
[337654330,1725917944954,174.461421,0.0002468,2]
[337654331,1725917987873,3000.0,0.00024954,2]
[337654332,1725918119056,6212.1284776,0.00024659,2]
[337654333,1725918139916,251.0,0.00024736,2]
[337654334,1725918172713,24900.0,0.00024736,2]
[337654348,1725918311363,160.36465505,0.00024613,6]
[337654350,1725918464994,171.634967,0.0002486,2]
[337654804,1725918632551,-2257.1024846,0.00025084,2]
[337654805,1725918632564,-674.097676,0.00025084,2]
[337654806,1725918632574,-2503.54978228,0.00025629,2]
[337654807,1725918632584,-300.0,0.00025659,2]
[337654808,1725918632593,-193.0,0.00025659,10]
[337654809,1725918632606,-3000.0,0.0002566,2]
[337654810,1725918632615,-192.58900396,0.00025798,2]
[337654811,1725918632625,-250.0,0.00025845,2]
[337654812,1725918632635,-250.0,0.00025915,2]
[337654813,1725918632645,-250.0,0.00025986,2]
[337654814,1725918632654,-250.0,0.00026057,2]
[337654815,1725918632664,-250.0,0.00026128,2]
[337654816,1725918632673,-250.0,0.00026199,2]
[337654817,1725918632683,-250.0,0.0002627,2]
[337654818,1725918632692,-250.0,0.00026341,2]
[337654819,1725918632701,-250.0,0.00026412,2]
[337654820,1725918632711,-250.0,0.00026482,2]
[337654821,1725918632721,-250.0,0.00026553,2]
[337654823,1725918632730,-250.0,0.00026624,2]
[337654824,1725918632740,-151.76567976,0.00026695,2]
[337654825,1725918632755,-98.23432024,0.00026695,2]
[337654826,1725918632764,-250.0,0.00026766,2]
[337654827,1725918632773,-250.0,0.00026837,2]
[337654828,1725918632784,-250.0,0.00026908,2]
[337654829,1725918632794,-250.0,0.00026979,2]
[337654830,1725918632803,-250.0,0.00027049,2]
[337654831,1725918632812,-250.0,0.0002712,2]
[337654832,1725918632822,-250.0,0.00027191,2]
[337654833,1725918632831,-8722.07046,0.00027397,2]
[337654835,1725918632841,-6279.69521976,0.00028082,2]
[337654908,1725918638656,-898.78971019,0.00028082,2]
[337654910,1725918638668,-1543.58553005,0.00028082,2]
[337654911,1725918638678,-252.62873779,0.00028224,2]
[337654913,1725918638690,-167.37126221,0.00028224,2]
[337654914,1725918638699,-7936.45426604,0.00028767,2]
[337654915,1725918638711,-785.61619396,0.00028767,2]
[337654917,1725918638720,-1710.27625391,0.00029076,2]
[337654918,1725918638730,-3673.35558232,0.00029148,2]
[337654919,1725918638740,-5735.9,0.00029502,2]
[337654921,1725918638750,-355.18785982,0.00029561,2]
[337654922,1725918638760,-1186.96,0.00029649,3]
[337654923,1725918638769,-593.48,0.0002965,3]
[337654924,1725918638779,-214.88830465,0.00029659,2]
[337654925,1725918638789,-500.0,0.00029659,2]
[337654926,1725918638798,-297.00089251,0.00029659,2]
[337654927,1725918638808,-500.0,0.00029659,2]
[337654928,1725918638817,-500.0,0.00029659,2]
[337654929,1725918638827,-291.11343753,0.00029659,2]
[337654930,1725918638838,-500.0,0.00029659,2]
[337654931,1725918638847,-467.85785476,0.00029659,2]
[337654932,1725918638858,-500.0,0.00029659,2]
[337654933,1725918638867,-269.0487176,0.00029659,2]
[337654934,1725918638877,-500.0,0.00029659,2]
[337654935,1725918638886,-500.0,0.00029659,2]
[337654936,1725918638896,-500.0,0.00029659,2]
[337654937,1725918638907,-500.0,0.00029659,2]
[337654938,1725918638916,-500.0,0.00029659,2]
[337654939,1725918638926,-500.0,0.00029659,2]
[337654940,1725918638935,-500.0,0.00029659,2]
[337654942,1725918638945,-500.0,0.00029659,2]
[337654943,1725918638956,-236.81006616,0.00029659,2]
[337654944,1725918638966,-500.0,0.00029659,2]
[337654946,1725918638975,-500.0,0.00029659,2]
[337654947,1725918638986,-500.0,0.00029659,2]
[337654948,1725918638996,-500.0,0.00029659,2]
[337654950,1725918639005,-500.0,0.00029659,2]
[337654951,1725918639015,-500.0,0.00029659,2]
[337654952,1725918639024,-500.0,0.00029659,2]
[337654953,1725918639034,-500.0,0.00029659,2]
[337654954,1725918639043,-500.0,0.00029659,2]
[337654955,1725918639053,-300.0,0.00029659,2]
[337654956,1725918639062,-500.0,0.00029659,2]
[337654957,1725918639072,-500.0,0.00029659,2]
[337654958,1725918639082,-500.0,0.00029659,2]
[337654959,1725918639091,-500.0,0.00029659,2]
[337654960,1725918639101,-500.0,0.00029659,2]
[337654961,1725918639112,-500.0,0.00029659,2]
[337654962,1725918639123,-500.0,0.00029659,2]
[337654963,1725918639135,-500.0,0.00029659,2]
[337654964,1725918639144,-500.0,0.00029659,2]
[337654965,1725918639156,-500.0,0.00029659,2]
[337654966,1725918639166,-78952.23872555,0.0002966,4]
[337654967,1725918639191,-11352.5871732,0.0002966,4]
[337654992,1725918640698,-64340.80733125,0.0002966,4]
[337654993,1725918640707,-115465.40928542,0.0002966,4]
[337655006,1725918643611,-264.50020531,0.0002965,3]
[337655007,1725918643625,-32.23979469,0.0002965,3]
[337655009,1725918643639,-3308.29261958,0.0002966,4]
[337655011,1725918643648,-500.0,0.00029673,5]
[337655013,1725918643657,-310.8157173,0.00029673,5]
[337655014,1725918643666,-158.54731335,0.00029673,5]
[337655016,1725918643676,-500.0,0.00029673,5]
[337655018,1725918643685,-500.7970442,0.00029673,5]
[337655019,1725918643694,-22209.12,0.000297,14]
[337655021,1725918643704,-150.112233,0.000297,10]
[337655023,1725918643713,-150.112233,0.000297,8]
[337655024,1725918643723,-150.112233,0.000297,10]
[337655026,1725918643733,-150.112233,0.000297,6]
[337655028,1725918643743,-150.112235,0.000297,8]
[337655030,1725918643754,-2321.55,0.000297,7]
[337655031,1725918643763,-153.0,0.00029744,2]
[337655033,1725918643773,-141216.75151045,0.00029748,4]
[337655035,1725918643785,-13428.88171955,0.00029748,4]
[337655037,1725918643794,-88.81285861,0.00029748,4]
[337655039,1725918643809,-546.27359554,0.00029748,4]
[337655056,1725918646684,-781.34111712,0.00029561,2]
[337655057,1725918712094,309.68128596,0.00024984,2]
[337655164,1725919227684,-2221.2509736,0.00025539,2]
[337655165,1725919227709,-24900.0,0.0002557,2]
[337655166,1725919227733,-3000.0,0.00025655,2]
[337655167,1725919227759,-250.0,0.0002603,2]
[337655168,1725919227783,-3593.4573162,0.00026055,2]
[337655169,1725919227806,-250.0,0.00026101,2]
[337655170,1725919227832,-250.0,0.00026172,2]
[337655171,1725919227856,-250.0,0.00026244,2]
[337655172,1725919227879,-250.0,0.00026315,2]
[337655173,1725919228108,-337.048838,0.0002635,2]
[337655174,1725919228132,-250.0,0.00026387,2]
[337655175,1725919228154,-300.0,0.00026456,2]
[337655176,1725919228176,-300.0,0.00026456,2]
[337655177,1725919228198,-193.0,0.00026456,15]
[337655178,1725919228221,-697.2428722,0.00026458,2]
[337655179,1725919228254,251.0,0.00024827,2]
[337655180,1725919231677,1296.4213326,0.00024827,2]
[337655181,1725919409216,166.666666,0.0002479,2]
[337655191,1725919594901,189.969775,0.00024686,2]
[337655192,1725919646576,3000.0,0.00024745,2]
[337655208,1725919802076,744.4024012,0.0002472,2]
[337655209,1725919810833,24900.0,0.00024718,2]
[337655254,1725919833792,-167.15689731,0.00025048,2]
[337655255,1725919833803,-300.0,0.00025129,2]
[337655256,1725919833815,-5277.39569435,0.0002513,2]
[337655257,1725919833827,-4428.89610944,0.0002513,2]
[337655258,1725919833839,-2324.05915922,0.0002513,2]
[337655259,1725919833851,-787.89028909,0.0002513,2]
[337655260,1725919833861,-250.0,0.00025148,2]
[337655261,1725919833870,-412.1047633,0.00025177,2]
[337655262,1725919833880,-250.0,0.00025208,2]
[337655263,1725919833890,-250.0,0.00025217,2]
[337655264,1725919833900,-250.0,0.00025286,2]
[337655265,1725919833911,-2899.1095306,0.00025303,2]
[337655266,1725919833925,-656.818888,0.00025331,2]
[337655267,1725919833937,-250.0,0.00025354,2]
[337655268,1725919833947,-1806.30691008,0.00025355,2]
[337655269,1725919833960,-250.0,0.00025423,2]
[337655270,1725919833970,-250.0,0.00025492,2]
[337655271,1725919833980,-250.0,0.00025561,2]
[337655272,1725919833990,-250.0,0.0002563,2]
[337655273,1725919833999,-250.0,0.00025699,2]
[337655274,1725919834009,-250.0,0.00025768,2]
[337655275,1725919834019,-275.668628,0.00025806,2]
[337655276,1725919834028,-275.668628,0.00025813,2]
[337655277,1725919834037,-275.668628,0.0002582,2]
[337655278,1725919834048,-275.668628,0.00025827,2]
[337655279,1725919834057,-275.668628,0.00025834,2]
[337655280,1725919834067,-250.0,0.00025837,2]
[337655281,1725919834076,-275.668628,0.0002584,2]
[337655282,1725919834086,-275.668628,0.00025847,2]
[337655283,1725919834097,-275.668628,0.00025854,2]
[337655284,1725919834109,-275.668628,0.00025861,2]
[337655285,1725919834120,-275.668628,0.00025868,2]
[337655286,1725919834131,-275.668628,0.00025874,2]
[337655287,1725919834140,-275.668628,0.00025881,2]
[337655288,1725919834150,-275.668628,0.00025888,2]
[337655289,1725919834161,-275.668628,0.00025895,2]
[337655290,1725919834171,-275.668628,0.00025902,2]
[337655291,1725919834180,-250.0,0.00025906,2]
[337655292,1725919834191,-275.668628,0.00025908,2]
[337655293,1725919834200,-275.668628,0.00025915,2]
[337655294,1725919834211,-275.668628,0.00025922,2]
[337655295,1725919834221,-275.668628,0.00025929,2]
[337655296,1725919834231,-275.668628,0.00025936,2]
[337655297,1725919834240,-250.0,0.00025975,2]
[337655298,1725919834251,-250.0,0.00026044,2]
[337655299,1725919834260,-250.0,0.00026113,2]
[337655300,1725919834270,-250.0,0.00026182,2]
[337655301,1725919834280,-250.0,0.00026251,2]
[337655302,1725919834291,-250.0,0.0002632,2]
[337655303,1725919834300,-250.0,0.00026389,2]
[337655304,1725919834310,-218.30680653,0.000264,2]
[337655305,1725919834323,-218.30680652,0.000264,2]
[337655306,1725919834333,-218.30680652,0.000264,2]
[337655307,1725919834342,-250.0,0.00026458,2]
[337655308,1725919834352,-355.18785982,0.00026919,2]
[337655309,1725919834362,-355.18785982,0.00026936,2]
[337655310,1725919834371,-5867.18538095,0.0002695,2]
[337655311,1725919834381,-355.18785982,0.00026953,2]
[337655312,1725919834391,-5867.18538095,0.00026973,2]
[337655313,1725919834401,-5867.18538095,0.00026996,2]
[337655314,1725919834410,-5867.18538095,0.00027019,2]
[337655315,1725919834420,-326.08,0.0002704,3]
[337655316,1725919834429,-163.04,0.0002704,3]
[337655317,1725919834440,-489.14,0.0002704,3]
[337655318,1725919834450,-1304.31,0.00027041,3]
[337655319,1725919834462,-652.15,0.00027041,3]
[337655320,1725919834472,-5867.18538095,0.00027042,2]
[337655321,1725919834483,-500.0,0.0002705,2]
[337655322,1725919834492,-500.0,0.0002705,2]
[337655323,1725919834502,-377.54189163,0.0002705,2]
[337655324,1725919834512,-297.00089251,0.0002705,2]
[337655325,1725919834521,-214.88830465,0.0002705,2]
[337655326,1725919834530,-500.0,0.0002705,2]
[337655327,1725919834540,-500.0,0.0002705,2]
[337655328,1725919834550,-176.48240995,0.0002705,2]
[337655329,1725919834560,-500.0,0.0002705,2]
[337655330,1725919834569,-500.0,0.0002705,2]
[337655331,1725919834579,-9489.96729812,0.00027051,4]
[337655335,1725919838544,-876.9399101,0.00027041,3]
[337655336,1725919838567,-15402.5500899,0.00027041,3]
[337655337,1725919838577,-500.0,0.00027049,2]
[337655338,1725919838586,-500.0,0.00027049,2]
[337655339,1725919838596,-500.0,0.00027049,2]
[337655340,1725919838605,-500.0,0.00027049,2]
[337655341,1725919838614,-500.0,0.00027049,2]
[337655342,1725919838623,-500.0,0.00027049,2]
[337655343,1725919838633,-500.0,0.00027049,2]
[337655344,1725919838642,-500.0,0.00027049,2]
[337655345,1725919838652,-500.0,0.00027049,2]
[337655346,1725919838663,-500.0,0.00027049,2]
[337655347,1725919838672,-555.4432562,0.00027049,2]
[337655348,1725919838683,-441.16281248,0.00027049,2]
[337655349,1725919838692,-500.0,0.00027049,2]
[337655350,1725919838702,-500.0,0.00027049,2]
[337655351,1725919838712,-500.0,0.00027049,2]
[337655352,1725919838721,-500.0,0.00027049,2]
[337655353,1725919838731,-500.0,0.00027049,2]
[337655354,1725919838740,-500.0,0.00027049,2]
[337655355,1725919838749,-500.0,0.00027049,2]
[337655356,1725919838758,-500.0,0.00027049,2]
[337655357,1725919838767,-650.0,0.00027049,2]
[337655358,1725919838778,-500.0,0.00027049,2]
[337655359,1725919838788,-500.0,0.00027049,2]
[337655360,1725919838797,-500.0,0.00027049,2]
[337655361,1725919838806,-500.0,0.0002705,2]
[337655362,1725919838815,-500.0,0.0002705,2]
[337655363,1725919838824,-500.0,0.0002705,2]
[337655364,1725919838834,-335.41519988,0.0002705,2]
[337655365,1725919838843,-500.0,0.0002705,2]
[337655366,1725919838853,-80399.54633635,0.00027051,4]
[337655367,1725919838865,-1129.34726464,0.00027051,4]
[337655370,1725919841232,-3885.16520325,0.00027051,4]
[337655371,1725919841245,-5255.27758816,0.00027051,4]
[337655372,1725919841257,-26746.80602573,0.00027051,4]
[337655373,1725919841269,-27766.41400575,0.00027051,4]
[337655374,1725919841278,-3184.74,0.00027053,2]
[337655375,1725919841288,-7029.39,0.00027053,2]
[337655376,1725919841298,-1314.29,0.00027053,2]
[337655377,1725919841307,-1549.17,0.00027053,2]
[337655378,1725919841317,-1317.42,0.00027053,2]
[337655379,1725919841326,-500.0,0.00027053,2]
[337655380,1725919841336,-441.23004909,0.00027053,2]
[337655381,1725919841346,-902.33830877,0.00027053,2]
[337655382,1725919841356,-500.0,0.00027059,2]
[337655383,1725919841366,-507.88213887,0.0002706,2]
[337655384,1725919841375,-5020.26,0.0002706,2]
[337655385,1725919841386,-500.0,0.0002706,2]
[337655386,1725919841396,-4687.79,0.0002706,2]
[337655387,1725919841406,-8070.1,0.0002706,2]
[337655388,1725919841417,-1711.78,0.0002706,2]
[337655389,1725919841426,-1179.98,0.0002706,2]
[337655390,1725919841436,-1496.29,0.0002706,2]
[337655391,1725919841446,-931.31,0.0002706,2]
[337655392,1725919841455,-500.0,0.0002706,2]
[337655393,1725919841465,-2068.56,0.0002706,2]
[337655394,1725919841475,-500.0,0.0002706,2]
[337655395,1725919841484,-1818.59,0.0002706,2]
[337655396,1725919841494,-533.48,0.0002706,2]
[337655397,1725919841503,-500.0,0.0002706,2]
[337655398,1725919841514,-272.50098039,0.0002706,2]
[337655399,1725919841524,-500.0,0.0002706,2]
[337655400,1725919841533,-2383.41,0.0002706,2]
[337655401,1725919841695,-62511.52,0.0002706,2]
[337655402,1725919841705,-500.0,0.00027118,2]
[337655403,1725919841715,-309345.047443,0.00027129,4]
[337655404,1725919841724,-500.0,0.00027138,2]
[337655405,1725919841734,-174.54309633,0.00027138,2]
[337655406,1725919841743,-1048.99690521,0.00027142,2]
[337655407,1725919841752,-151.0,0.00027154,7]
[337655408,1725919841761,-244.869803,0.00027154,7]
[337655409,1725919841770,-151.0,0.00027154,7]
[337655410,1725919841779,-245.978072,0.00027154,7]
[337655411,1725919841788,-245.978072,0.00027154,7]
[337655412,1725919841798,-151.0,0.00027154,7]
[337655413,1725919841807,-151.0,0.00027154,7]
[337655414,1725919841817,-155.052326,0.00027154,7]
[337655415,1725919841826,-291.44146,0.00027154,7]
[337655416,1725919841835,-151.0,0.00027154,7]
[337655417,1725919841846,-151.975802,0.00027154,7]
[337655418,1725919841855,-151.0,0.00027154,7]
[337655419,1725919841864,-152.188638,0.00027154,7]
[337655420,1725919841873,-360.84611,0.00027154,7]
[337655421,1725919841882,-360.84611,0.00027154,7]
[337655422,1725919841891,-151.0,0.00027154,7]
[337655423,1725919841901,-151.0,0.00027154,7]
[337655424,1725919841912,-151.0,0.00027154,7]
[337655425,1725919841924,-151.0,0.00027154,7]
[337655426,1725919841934,-151.0,0.00027154,7]
[337655427,1725919841945,-275.802927,0.00027154,7]
[337655428,1725919841954,-151.0,0.00027154,7]
[337655429,1725919841965,-151.0,0.00027154,7]
[337655430,1725919841975,-259.109485,0.00027154,7]
[337655431,1725919841987,-259.109485,0.00027154,7]
[337655432,1725919841997,-259.109485,0.00027154,7]
[337655433,1725919842007,-259.109485,0.00027154,7]
[337655434,1725919842017,-213.748964,0.00027154,7]
[337655435,1725919842028,-213.748964,0.00027154,7]
[337655436,1725919842039,-213.748964,0.00027154,7]
[337655437,1725919842051,-213.748964,0.00027154,7]
[337655438,1725919842061,-151.0,0.00027154,7]
[337655439,1725919842070,-151.0,0.00027154,7]
[337655440,1725919842080,-151.0,0.00027154,7]
[337655441,1725919842090,-151.0,0.00027154,7]
[337655442,1725919842099,-151.0,0.00027154,7]
[337655443,1725919842108,-151.0,0.00027154,7]
[337655444,1725919842118,-290.85437,0.00027154,7]
[337655445,1725919842128,-290.85437,0.00027154,7]
[337655446,1725919842137,-290.85437,0.00027154,7]
[337655447,1725919842146,-290.85437,0.00027154,7]
[337655448,1725919842155,-214.503406,0.00027154,7]
[337655449,1725919842165,-214.503406,0.00027154,7]
[337655450,1725919842174,-214.503406,0.00027154,7]
[337655451,1725919842184,-214.503406,0.00027154,7]
[337655452,1725919842193,-151.0,0.00027154,7]
[337655453,1725919842203,-151.0,0.00027154,7]
[337655454,1725919842212,-151.0,0.00027154,7]
[337655455,1725919842222,-151.0,0.00027154,7]
[337655456,1725919842231,-500.0,0.00027163,2]
[337655457,1725919842240,-500.0,0.00027163,2]
[337655458,1725919842249,-500.0,0.00027163,2]
[337655459,1725919842259,-500.0,0.00027163,2]
[337655460,1725919842268,-500.0,0.00027163,2]
[337655461,1725919842279,-500.0,0.00027163,2]
[337655462,1725919842289,-500.0,0.00027163,2]
[337655463,1725919842298,-500.0,0.00027163,2]
[337655464,1725919842308,-500.0,0.00027163,2]
[337655465,1725919842317,-498.72045794,0.00027163,2]
[337655466,1725919842327,-500.0,0.00027163,2]
[337655467,1725919842336,-506.58544579,0.00027163,2]
[337655468,1725919842345,-500.0,0.00027163,2]
[337655469,1725919842355,-500.0,0.00027163,2]
[337655470,1725919842364,-500.0,0.00027163,2]
[337655471,1725919842373,-500.0,0.00027163,2]
[337655472,1725919842383,-500.0,0.00027163,2]
[337655473,1725919842392,-925.03,0.00027163,2]
[337655474,1725919842403,-500.0,0.00027163,2]
[337655475,1725919842413,-500.0,0.00027163,2]
[337655476,1725919842425,-500.0,0.00027163,2]
[337655477,1725919842435,-500.0,0.00027163,2]
[337655478,1725919842444,-500.0,0.00027163,2]
[337655479,1725919842457,-504.58965756,0.00027163,2]
[337655480,1725919842466,-500.0,0.00027163,2]
[337655481,1725919842476,-500.0,0.00027163,2]
[337655482,1725919842486,-594.78,0.00027163,2]
[337655483,1725919842497,-500.0,0.00027163,2]
[337655484,1725919842506,-500.0,0.00027163,2]
[337655485,1725919842515,-518.01197842,0.00027163,2]
[337655486,1725919842526,-500.0,0.00027163,2]
[337655487,1725919842536,-533.92,0.00027163,2]
[337655488,1725919842546,-500.0,0.00027163,2]
[337655489,1725919842556,-500.0,0.00027163,2]
[337655490,1725919842566,-500.0,0.00027163,2]
[337655491,1725919842576,-500.0,0.00027163,2]
[337655492,1725919842586,-500.0,0.00027163,2]
[337655493,1725919842598,-932.83,0.00027163,2]
[337655494,1725919842610,-182.516464,0.00027163,2]
[337655495,1725919842619,-932.83,0.00027163,2]
[337655496,1725919842629,-932.83,0.00027163,2]
[337655497,1725919842638,-932.83,0.00027163,2]
[337655498,1725919842647,-932.83,0.00027163,2]
[337655499,1725919842657,-500.0,0.00027163,2]
[337655500,1725919842666,-932.83,0.00027163,2]
[337655501,1725919842676,-932.83,0.00027163,2]
[337655502,1725919842686,-932.83,0.00027163,2]
[337655503,1725919842698,-1451.27,0.00027163,2]
[337655504,1725919842708,-523.804249,0.00027163,2]
[337655505,1725919842718,-500.0,0.00027163,2]
[337655506,1725919842728,-500.0,0.00027163,2]
[337655507,1725919842739,-500.0,0.00027163,2]
[337655508,1725919842750,-500.0,0.00027163,2]
[337655509,1725919842760,-500.0,0.00027163,2]
[337655510,1725919842769,-500.0,0.00027163,2]
[337655511,1725919842778,-500.0,0.00027163,2]
[337655512,1725919842788,-500.0,0.00027163,2]
[337655513,1725919842797,-500.0,0.00027163,2]
[337655514,1725919842807,-500.0,0.00027163,2]
[337655515,1725919842816,-500.0,0.00027163,2]
[337655516,1725919842826,-545.43,0.00027163,2]
[337655517,1725919842835,-1615.92,0.00027163,2]
[337655518,1725919842848,-724.08,0.00027163,2]
[337655519,1725919842859,-500.0,0.00027163,2]
[337655520,1725919842868,-500.0,0.00027163,2]
[337655521,1725919842878,-500.0,0.00027163,2]
[337655522,1725919842887,-500.0,0.00027163,2]
[337655523,1725919842897,-500.0,0.00027163,2]
[337655524,1725919842907,-625.66,0.00027163,2]
[337655525,1725919842920,-500.0,0.00027163,2]
[337655526,1725919842930,-501.45512182,0.00027163,2]
[337655527,1725919842940,-408.2097917,0.00027163,2]
[337655528,1725919842949,-500.0,0.00027163,2]
[337655529,1725919842959,-500.0,0.00027163,2]
[337655530,1725919842969,-500.0,0.00027163,2]
[337655531,1725919842978,-500.0,0.00027163,2]